fUST/lending_fUST_20250408
["ID","MTS","AMOUNT","RATE_DAILY","PERIOD"]
[357439437,1744067438766,-500.0,0.00021917,2]
[357439439,1744067438776,-500.0,0.00021917,2]
[357439442,1744067438787,-500.0,0.00021917,2]
[357439444,1744067438798,-500.0,0.00021917,2]
[357439446,1744067438811,-500.0,0.00021917,2]
[357439482,1744067439152,-500.0,0.00021917,2]
[357439484,1744067439163,-438.47735175,0.00021917,2]
[357439486,1744067439174,-500.0,0.00021917,2]
[357439488,1744067439184,-200.0,0.00021917,2]
[357439490,1744067439194,-247.68008531,0.00021917,2]
[357439492,1744067439204,-500.0,0.00021917,2]
[357439494,1744067439214,-500.0,0.00021917,2]
[357439496,1744067439224,-500.0,0.00021917,2]
[357439498,1744067439237,-500.0,0.00021917,2]
[357439500,1744067439247,-500.0,0.00021917,2]
[357439501,1744067439256,-500.0,0.00021917,2]
[357439502,1744067439267,-500.0,0.00021917,2]
[357439503,1744067439278,-500.0,0.00021917,2]
[357439504,1744067439288,-500.0,0.00021917,2]
[357439505,1744067439299,-500.0,0.00021917,2]
[357439506,1744067439311,-500.0,0.00021917,2]
[357439507,1744067439322,-500.0,0.00021917,2]
[357439508,1744067439331,-500.0,0.00021917,2]
[357439509,1744067439341,-500.0,0.00021917,2]
[357439510,1744067439351,-1072.29,0.00021917,2]
[357439511,1744067439361,-500.0,0.00021917,2]
[357439512,1744067439370,-500.0,0.00021917,2]
[357439513,1744067439380,-635.74306162,0.00021917,2]
[357439514,1744067439390,-500.0,0.00021917,2]
[357439515,1744067439401,-500.0,0.00021917,2]
[357439516,1744067439411,-500.0,0.00021917,2]
[357439517,1744067439422,-500.0,0.00021917,2]
[357439518,1744067439432,-500.0,0.00021917,2]
[357439519,1744067439442,-927.79,0.00021917,2]
[357439520,1744067439458,-500.0,0.00021917,2]
[357439521,1744067439468,-500.0,0.00021917,2]
[357439522,1744067439479,-881.96,0.00021917,2]
[357439523,1744067439489,-500.0,0.00021917,2]
[357439524,1744067439500,-547.24,0.00021917,2]
[357439525,1744067439511,-616.34,0.00021917,2]
[357439526,1744067439521,-630.97,0.00021917,2]
[357439527,1744067439532,-500.0,0.00021917,2]
[357439528,1744067439542,-500.0,0.00021917,2]
[357439529,1744067439553,-504.12627612,0.00021917,2]
[357439530,1744067439563,-500.0,0.00021917,2]
[357439531,1744067439573,-500.0,0.00021917,2]
[357439532,1744067439583,-500.0,0.00021917,2]
[357439533,1744067439593,-500.0,0.00021917,2]
[357439534,1744067439604,-474.82120366,0.00021917,2]
[357439535,1744067439614,-500.0,0.00021917,2]
[357439536,1744067439625,-605.8,0.00021917,2]
[357439537,1744067439635,-500.0,0.00021917,2]
[357439538,1744067439646,-500.0,0.00021917,2]
[357439539,1744067439657,-500.0,0.00021917,2]
[357439540,1744067439667,-1060.35,0.00021917,2]
[357439541,1744067439678,-500.0,0.00021917,2]
[357439542,1744067439689,-541.6,0.00021917,2]
[357439543,1744067439699,-500.0,0.00021917,2]
[357439544,1744067439709,-500.0,0.00021917,2]
[357439545,1744067439719,-500.0,0.00021917,2]
[357439546,1744067439729,-500.0,0.00021917,2]
[357439547,1744067439739,-500.0,0.00021917,2]
[357439548,1744067439749,-171.68974358,0.00021917,2]
[357439549,1744067439759,-1035.03,0.00021917,2]
[357439550,1744067439771,-200.0,0.00021917,2]
[357439551,1744067439782,-500.0,0.00021917,2]
[357439552,1744067439792,-500.0,0.00021917,2]
[357439553,1744067439802,-500.0,0.00021917,2]
[357439554,1744067439812,-500.0,0.00021917,2]
[357439555,1744067439823,-500.0,0.00021917,2]
[357439556,1744067439833,-500.0,0.00021917,2]
[357439557,1744067439843,-500.0,0.00021917,2]
[357439558,1744067439854,-500.0,0.00021917,2]
[357439559,1744067439864,-668.67,0.00021917,2]
[357439560,1744067439874,-500.0,0.00021917,2]
[357439561,1744067439884,-500.0,0.00021917,2]
[357439562,1744067439896,-619.26,0.00021917,2]
[357439563,1744067439906,-500.0,0.00021917,2]
[357439564,1744067439916,-816.67,0.00021917,2]
[357439565,1744067439927,-500.0,0.00021917,2]
[357439566,1744067439937,-500.0,0.00021917,2]
[357439567,1744067439948,-731.78,0.00021917,2]
[357439568,1744067439958,-500.0,0.00021917,2]
[357439569,1744067439968,-500.0,0.00021917,2]
[357439570,1744067439978,-500.0,0.00021917,2]
[357439571,1744067439988,-500.0,0.00021917,2]
[357439572,1744067439998,-970.43,0.00021917,2]
[357439573,1744067440008,-540.9,0.00021917,2]
[357439574,1744067440018,-500.0,0.00021917,2]
[357439575,1744067440028,-500.0,0.00021917,2]
[357439576,1744067440039,-2092.69,0.00021917,2]
[357439577,1744067440049,-646.62779272,0.00021917,2]
[357439578,1744067440059,-500.0,0.00021917,2]
[357439579,1744067440070,-500.0,0.00021917,2]
[357439580,1744067440082,-500.0,0.00021917,2]
[357439581,1744067440092,-500.0,0.00021917,2]
[357439582,1744067440102,-500.0,0.00021917,2]
[357439583,1744067440112,-500.0,0.00021917,2]
[357439584,1744067440122,-752.75,0.00021917,2]
[357439585,1744067440132,-500.0,0.00021917,2]
[357439586,1744067440142,-1377.51,0.00021917,2]
[357439587,1744067440152,-971.08,0.00021917,2]
[357439588,1744067440162,-619.74,0.00021917,2]
[357439589,1744067440172,-833.2,0.00021917,2]
[357439590,1744067440182,-1253.58,0.00021917,2]
[357439591,1744067440192,-500.0,0.00021917,2]
[357439592,1744067440203,-500.0,0.00021917,2]
[357439593,1744067440213,-500.0,0.00021917,2]
[357439594,1744067440224,-500.0,0.00021917,2]
[357439595,1744067440238,-500.0,0.00021917,2]
[357439596,1744067440248,-1162.8,0.00021917,2]
[357439597,1744067440258,-674.12,0.00021917,2]
[357439598,1744067440267,-1156.07,0.00021917,2]
[357439599,1744067440278,-500.0,0.00021917,2]
[357439600,1744067440289,-500.0,0.00021917,2]
[357439601,1744067440299,-1029.64,0.00021917,2]
[357439602,1744067440310,-503.72,0.00021917,2]
[357439603,1744067440319,-500.0,0.00021917,2]
[357439604,1744067440329,-500.0,0.00021917,2]
[357439605,1744067440338,-500.0,0.00021917,2]
[357439606,1744067440348,-1743.37,0.00021917,2]
[357439607,1744067440358,-2686.13,0.00021917,2]
[357439608,1744067440367,-1085.9,0.00021917,2]
[357439609,1744067440377,-500.0,0.00021917,2]
[357439610,1744067440387,-500.0,0.00021917,2]
[357439611,1744067440398,-618.76,0.00021917,2]
[357439612,1744067440409,-1894.63,0.00021917,2]
[357439614,1744067440420,-2082.85,0.00021917,2]
[357439617,1744067440430,-500.0,0.00021917,2]
[357439618,1744067440440,-500.0,0.00021917,2]
[357439621,1744067440450,-500.0,0.00021917,2]
[357439623,1744067440461,-1487.0,0.00021917,2]
[357439625,1744067440471,-500.0,0.00021917,2]
[357439627,1744067440480,-500.0,0.00021917,2]
[357439629,1744067440490,-500.0,0.00021917,2]
[357439631,1744067440500,-500.0,0.00021917,2]
[357439633,1744067440510,-500.0,0.00021917,2]
[357439635,1744067440520,-500.0,0.00021917,2]
[357439637,1744067440530,-500.0,0.00021917,2]
[357439639,1744067440541,-5056.29,0.00021917,2]
[357439641,1744067440551,-500.0,0.00021917,2]
[357439643,1744067440561,-500.0,0.00021917,2]
[357439645,1744067440571,-500.0,0.00021917,2]
[357439647,1744067440582,-636.86,0.00021917,2]
[357439649,1744067440591,-1012.24,0.00021917,2]
[357439651,1744067440602,-717.76,0.00021917,2]
[357439652,1744067440612,-1782.72,0.00021917,2]
[357439653,1744067440622,-500.0,0.00021917,2]
[357439654,1744067440632,-500.0,0.00021917,2]
[357439655,1744067440642,-1521.98,0.00021917,2]
[357439656,1744067440653,-500.0,0.00021917,2]
[357439657,1744067440663,-567.33,0.00021917,2]
[357439658,1744067440673,-1638.21,0.00021917,2]
[357439659,1744067440683,-1445.23,0.00021917,2]
[357439660,1744067440693,-500.0,0.00021917,2]
[357439661,1744067440703,-500.0,0.00021917,2]
[357439662,1744067440712,-500.0,0.00021917,2]
[357439663,1744067440723,-2872.91,0.00021917,2]
[357439664,1744067440732,-500.0,0.00021917,2]
[357439665,1744067440743,-500.0,0.00021917,2]
[357439666,1744067440752,-500.0,0.00021917,2]
[357439667,1744067440763,-1631.28,0.00021917,2]
[357439668,1744067440773,-500.0,0.00021917,2]
[357439669,1744067440783,-500.0,0.00021917,2]
[357439670,1744067440793,-500.0,0.00021917,2]
[357439671,1744067440804,-500.0,0.00021917,2]
[357439672,1744067440815,-500.0,0.00021917,2]
[357439673,1744067440826,-500.0,0.00021917,2]
[357439674,1744067440836,-2426.48,0.00021917,2]
[357439675,1744067440847,-500.0,0.00021917,2]
[357439676,1744067440857,-967.51,0.00021917,2]
[357439677,1744067440868,-500.0,0.00021917,2]
[357439678,1744067440879,-500.0,0.00021917,2]
[357439679,1744067440890,-863.93,0.00021917,2]
[357439680,1744067440901,-500.0,0.00021917,2]
[357439681,1744067440912,-500.0,0.00021917,2]
[357439682,1744067440922,-500.0,0.00021917,2]
[357439683,1744067440932,-500.0,0.00021917,2]
[357439684,1744067440941,-812.79,0.00021917,2]
[357439685,1744067440951,-500.0,0.00021917,2]
[357439686,1744067440962,-1106.82,0.00021917,2]
[357439687,1744067440971,-500.0,0.00021917,2]
[357439688,1744067440981,-500.0,0.00021917,2]
[357439689,1744067440991,-500.0,0.00021917,2]
[357439690,1744067441001,-500.0,0.00021917,2]
[357439691,1744067441011,-500.0,0.00021917,2]
[357439692,1744067441020,-500.0,0.00021917,2]
[357439693,1744067441030,-500.0,0.00021917,2]
[357439694,1744067441040,-980.44,0.00021917,2]
[357439695,1744067441050,-500.0,0.00021917,2]
[357439696,1744067441060,-500.0,0.00021917,2]
[357439697,1744067441070,-500.0,0.00021917,2]
[357439698,1744067441080,-500.0,0.00021917,2]
[357439699,1744067441090,-500.0,0.00021917,2]
[357439700,1744067441100,-674.71,0.00021917,2]
[357439701,1744067441109,-500.0,0.00021917,2]
[357439702,1744067441119,-500.0,0.00021917,2]
[357439703,1744067441129,-2137.41,0.00021917,2]
[357439704,1744067441139,-1017.95,0.00021917,2]
[357439705,1744067441149,-500.0,0.00021917,2]
[357439706,1744067441159,-500.0,0.00021917,2]
[357439707,1744067441168,-7695.73,0.00021917,2]
[357439708,1744067441179,-1764.25,0.00021917,2]
[357439709,1744067441188,-500.0,0.00021917,2]
[357439711,1744067441198,-500.0,0.00021917,2]
[357439712,1744067441208,-500.0,0.00021917,2]
[357439713,1744067441218,-500.0,0.00021917,2]
[357439715,1744067441228,-938.09,0.00021917,2]
[357439716,1744067441242,-500.0,0.00021917,2]
[357439717,1744067441252,-1518.56,0.00021917,2]
[357439718,1744067441262,-500.0,0.00021917,2]
[357439719,1744067441272,-500.0,0.00021917,2]
[357439720,1744067441283,-500.0,0.00021917,2]
[357439721,1744067441292,-588.76,0.00021917,2]
[357439722,1744067441302,-500.0,0.00021973,2]
[357439723,1744067441313,-500.0,0.00021973,2]
[357439724,1744067441323,-500.0,0.00021973,2]
[357439725,1744067441333,-500.0,0.00021973,2]
[357439726,1744067441343,-500.0,0.00021973,2]
[357439728,1744067441352,-1719.0,0.00022,2]
[357439729,1744067441362,-500.0,0.00022173,2]
[357439730,1744067441372,-500.0,0.00022173,2]
[357439731,1744067441381,-500.0,0.00022173,2]
[357439732,1744067441391,-500.0,0.00022173,2]
[357439733,1744067441401,-500.0,0.00022173,2]
[357439734,1744067441411,-500.0,0.00022173,2]
[357439735,1744067441421,-500.0,0.00022173,2]
[357439736,1744067441431,-500.0,0.00022173,2]
[357439737,1744067441442,-500.0,0.00022173,2]
[357439738,1744067441451,-500.0,0.00022173,2]
[357439739,1744067441461,-500.0,0.00022173,2]
[357439740,1744067441472,-500.0,0.00022173,2]
[357439741,1744067441481,-500.0,0.00022173,2]
[357439742,1744067441491,-500.0,0.00022173,2]
[357439743,1744067441501,-500.0,0.00022173,2]
[357439744,1744067441511,-500.0,0.00022173,2]
[357439745,1744067441521,-386.77716487,0.00022173,2]
[357439746,1744067441530,-500.0,0.00022173,2]
[357439747,1744067441540,-500.0,0.00022191,2]
[357439748,1744067441549,-500.0,0.00022191,2]
[357439749,1744067441559,-152.17777469,0.00022191,2]
[357439750,1744067441570,-500.0,0.00022191,2]
[357439751,1744067441579,-500.0,0.00022191,2]
[357439752,1744067441590,-500.0,0.00022191,2]
[357439753,1744067441600,-500.0,0.00022191,2]
[357439754,1744067441610,-547.56026486,0.00022191,2]
[357439755,1744067441620,-500.0,0.00022191,2]
[357439756,1744067441630,-500.0,0.00022191,2]
[357439757,1744067441702,-500.0,0.00022191,2]
[357439758,1744067441712,-500.0,0.00022191,2]
[357439759,1744067441723,-500.0,0.00022191,2]
[357439760,1744067441733,-500.0,0.00022191,2]
[357439761,1744067441743,-500.0,0.00022191,2]
[357439762,1744067441753,-500.0,0.00022191,2]
[357439763,1744067441763,-500.0,0.00022191,2]
[357439764,1744067441772,-500.0,0.00022191,2]
[357439765,1744067441782,-500.0,0.00022191,2]
[357439766,1744067441795,-500.0,0.00022191,2]
[357439767,1744067441805,-500.0,0.00022191,2]
[357439768,1744067441815,-500.0,0.00022191,2]
[357439769,1744067441824,-500.0,0.00022191,2]
[357439770,1744067441835,-500.0,0.00022191,2]
[357439771,1744067441845,-500.0,0.00022191,2]
[357439772,1744067441854,-500.0,0.00022191,2]
[357439773,1744067441864,-500.0,0.00022191,2]
[357439774,1744067441874,-500.0,0.00022191,2]
[357439775,1744067441884,-1072.29,0.00022191,2]
[357439776,1744067441894,-500.0,0.00022191,2]
[357439777,1744067441903,-500.0,0.00022191,2]
[357439778,1744067441913,-500.0,0.00022191,2]
[357439779,1744067441922,-500.0,0.00022191,2]
[357439780,1744067441932,-500.0,0.00022191,2]
[357439781,1744067441942,-500.0,0.00022191,2]
[357439782,1744067441952,-500.0,0.00022191,2]
[357439783,1744067441962,-927.79,0.00022191,2]
[357439784,1744067441972,-500.0,0.00022191,2]
[357439785,1744067441981,-881.96,0.00022191,2]
[357439786,1744067441991,-500.0,0.00022191,2]
[357439787,1744067442000,-547.24,0.00022191,2]
[357439788,1744067442010,-616.34,0.00022191,2]
[357439789,1744067442019,-630.97,0.00022191,2]
[357439790,1744067442029,-500.0,0.00022191,2]
[357439791,1744067442038,-500.0,0.00022191,2]
[357439792,1744067442047,-500.0,0.00022191,2]
[357439793,1744067442057,-500.0,0.00022191,2]
[357439794,1744067442067,-500.0,0.00022191,2]
[357439795,1744067442077,-500.0,0.00022191,2]
[357439796,1744067442087,-500.0,0.00022191,2]
[357439797,1744067442097,-605.8,0.00022191,2]
[357439798,1744067442106,-500.0,0.00022191,2]
[357439799,1744067442115,-500.0,0.00022191,2]
[357439800,1744067442124,-500.0,0.00022191,2]
[357439801,1744067442134,-1060.35,0.00022191,2]
[357439802,1744067442144,-541.6,0.00022191,2]
[357439803,1744067442154,-500.0,0.00022191,2]
[357439804,1744067442164,-500.0,0.00022191,2]
[357439805,1744067442174,-500.0,0.00022191,2]
[357439806,1744067442183,-500.0,0.00022191,2]
[357439807,1744067442193,-500.0,0.00022191,2]
[357439808,1744067442203,-1035.03,0.00022191,2]
[357439809,1744067442213,-327.38222557,0.00022191,2]
[357439810,1744067442222,-500.0,0.00022191,2]
[357439811,1744067442233,-500.0,0.00022191,2]
[357439812,1744067442244,-500.0,0.00022191,2]
[357439813,1744067442254,-500.0,0.00022191,2]
[357439814,1744067442263,-500.0,0.00022191,2]
[357439815,1744067442272,-276.52629584,0.00022191,2]
[357439816,1744067442283,-500.0,0.00022191,2]
[357439817,1744067442292,-668.67,0.00022191,2]
[357439818,1744067442302,-500.0,0.00022191,2]
[357439819,1744067442312,-500.0,0.00022191,2]
[357439820,1744067442321,-619.26,0.00022191,2]
[357439821,1744067442331,-500.0,0.00022191,2]
[357439822,1744067442340,-816.67,0.00022191,2]
[357439823,1744067442349,-500.0,0.00022191,2]
[357439824,1744067442358,-500.0,0.00022191,2]
[357439825,1744067442368,-731.78,0.00022191,2]
[357439826,1744067442377,-500.0,0.00022191,2]
[357439827,1744067442387,-500.0,0.00022191,2]
[357439828,1744067442396,-500.0,0.00022191,2]
[357439829,1744067442406,-970.43,0.00022191,2]
[357439830,1744067442416,-540.9,0.00022191,2]
[357439831,1744067442426,-500.0,0.00022191,2]
[357439832,1744067442436,-500.0,0.00022191,2]
[357439833,1744067442445,-2092.69,0.00022191,2]
[357439834,1744067442455,-500.0,0.00022191,2]
[357439835,1744067442465,-500.0,0.00022191,2]
[357439836,1744067442475,-500.0,0.00022191,2]
[357439837,1744067442485,-500.0,0.00022191,2]
[357439838,1744067442494,-500.0,0.00022191,2]
[357439839,1744067442503,-500.0,0.00022191,2]
[357439840,1744067442513,-752.75,0.00022191,2]
[357439841,1744067442523,-500.0,0.00022191,2]
[357439842,1744067442532,-1377.51,0.00022191,2]
[357439843,1744067442542,-971.08,0.00022191,2]
[357439844,1744067442551,-619.74,0.00022191,2]
[357439845,1744067442560,-833.2,0.00022191,2]
[357439846,1744067442570,-1253.58,0.00022191,2]
[357439847,1744067442580,-500.0,0.00022191,2]
[357439848,1744067442589,-500.0,0.00022191,2]
[357439849,1744067442599,-500.0,0.00022191,2]
[357439850,1744067442608,-500.0,0.00022191,2]
[357439851,1744067442618,-500.0,0.00022191,2]
[357439852,1744067442627,-1162.8,0.00022191,2]
[357439853,1744067442637,-674.12,0.00022191,2]
[357439854,1744067442646,-1156.07,0.00022191,2]
[357439855,1744067442656,-500.0,0.00022191,2]
[357439856,1744067442666,-500.0,0.00022191,2]
[357439857,1744067442677,-1029.64,0.00022191,2]
[357439858,1744067442687,-503.72,0.00022191,2]
[357439859,1744067442697,-500.0,0.00022191,2]
[357439860,1744067442707,-500.0,0.00022191,2]
[357439861,1744067442717,-500.0,0.00022191,2]
[357439862,1744067442726,-1743.37,0.00022191,2]
[357439863,1744067442737,-2686.13,0.00022191,2]
[357439864,1744067442746,-1085.9,0.00022191,2]
[357439865,1744067442755,-500.0,0.00022191,2]
[357439866,1744067442765,-500.0,0.00022191,2]
[357439867,1744067442775,-618.76,0.00022191,2]
[357439868,1744067442784,-1894.63,0.00022191,2]
[357439869,1744067442793,-2082.85,0.00022191,2]
[357439870,1744067442803,-500.0,0.00022191,2]
[357439871,1744067442813,-500.0,0.00022191,2]
[357439872,1744067442823,-500.0,0.00022191,2]
[357439873,1744067442833,-1487.0,0.00022191,2]
[357439874,1744067442843,-500.0,0.00022191,2]
[357439875,1744067442853,-500.0,0.00022191,2]
[357439876,1744067442863,-500.0,0.00022191,2]
[357439877,1744067442873,-500.0,0.00022191,2]
[357439878,1744067442883,-500.0,0.00022191,2]
[357439879,1744067442893,-500.0,0.00022191,2]
[357439880,1744067442903,-500.0,0.00022191,2]
[357439881,1744067442913,-5056.29,0.00022191,2]
[357439882,1744067442923,-500.0,0.00022191,2]
[357439884,1744067442933,-500.0,0.00022191,2]
[357439886,1744067442943,-500.0,0.00022191,2]
[357439888,1744067442953,-636.86,0.00022191,2]
[357439890,1744067442962,-1012.24,0.00022191,2]
[357439892,1744067442971,-717.76,0.00022191,2]
[357439894,1744067442981,-1782.72,0.00022191,2]
[357439896,1744067442991,-500.0,0.00022191,2]
[357439898,1744067443001,-1521.98,0.00022191,2]
[357439900,1744067443011,-622.21025416,0.00022191,2]
[357439902,1744067443020,-567.33,0.00022191,2]
[357439904,1744067443030,-1638.21,0.00022191,2]
[357439905,1744067443039,-1445.23,0.00022191,2]
[357439906,1744067443050,-500.0,0.00022191,2]
[357439907,1744067443059,-500.0,0.00022191,2]
[357439908,1744067443069,-500.0,0.00022191,2]
[357439909,1744067443079,-2872.91,0.00022191,2]
[357439910,1744067443089,-500.0,0.00022191,2]
[357439911,1744067443098,-500.0,0.00022191,2]
[357439912,1744067443108,-500.0,0.00022191,2]
[357439913,1744067443117,-1631.28,0.00022191,2]
[357439914,1744067443127,-500.0,0.00022191,2]
[357439915,1744067443137,-500.0,0.00022191,2]
[357439916,1744067443147,-500.0,0.00022191,2]
[357439917,1744067443157,-500.0,0.00022191,2]
[357439918,1744067443167,-500.0,0.00022191,2]
[357439919,1744067443177,-643.21597122,0.00022191,2]
[357439920,1744067443188,-2426.48,0.00022191,2]
[357439922,1744067443198,-500.0,0.00022191,2]
[357439923,1744067443208,-967.51,0.00022191,2]
[357439924,1744067443217,-500.0,0.00022191,2]
[357439925,1744067443228,-500.0,0.00022191,2]
[357439926,1744067443242,-863.93,0.00022191,2]
[357439927,1744067443251,-366.6766531,0.00022191,2]
[357439928,1744067443260,-500.0,0.00022191,2]
[357439929,1744067443271,-500.0,0.00022191,2]
[357439930,1744067443280,-500.0,0.00022191,2]
[357439931,1744067443290,-812.79,0.00022191,2]
[357439932,1744067443299,-500.0,0.00022191,2]
[357439933,1744067443309,-1106.82,0.00022191,2]
[357439934,1744067443319,-500.0,0.00022191,2]
[357439935,1744067443328,-500.0,0.00022191,2]
[357439936,1744067443337,-500.0,0.00022191,2]
[357439937,1744067443347,-500.0,0.00022191,2]
[357439938,1744067443357,-500.0,0.00022191,2]
[357439939,1744067443367,-500.0,0.00022191,2]
[357439940,1744067443376,-500.0,0.00022191,2]
[357439941,1744067443386,-980.44,0.00022191,2]
[357439942,1744067443397,-500.0,0.00022191,2]
[357439943,1744067443406,-500.0,0.00022191,2]
[357439944,1744067443416,-674.71,0.00022191,2]
[357439945,1744067443426,-500.0,0.00022191,2]
[357439946,1744067443436,-500.0,0.00022191,2]
[357439947,1744067443446,-2137.41,0.00022191,2]
[357439948,1744067443456,-1017.95,0.00022191,2]
[357439949,1744067443466,-500.0,0.00022191,2]
[357439950,1744067443475,-500.0,0.00022191,2]
[357439951,1744067443484,-7695.73,0.00022191,2]
[357439952,1744067443493,-1764.25,0.00022191,2]
[357439953,1744067443503,-500.0,0.00022191,2]
[357439954,1744067443513,-500.0,0.00022191,2]
[357439955,1744067443522,-500.0,0.00022191,2]
[357439956,1744067443531,-162.23007951,0.00022191,2]
[357439957,1744067443541,-938.09,0.00022191,2]
[357439958,1744067443550,-500.0,0.00022191,2]
[357439959,1744067443560,-1518.56,0.00022191,2]
[357439960,1744067443569,-500.0,0.00022191,2]
[357439962,1744067443579,-500.0,0.00022191,2]
[357439963,1744067443588,-500.0,0.00022191,2]
[357439964,1744067443598,-588.76,0.00022191,2]
[357439965,1744067443608,-354.00696216,0.00022465,2]
[357439966,1744067443617,-500.0,0.00022465,2]
[357439967,1744067443627,-500.0,0.00022465,2]
[357439968,1744067443636,-500.0,0.00022465,2]
[357439969,1744067443647,-500.0,0.00022465,2]
[357439970,1744067443657,-500.0,0.00022465,2]
[357439971,1744067443666,-500.0,0.00022465,2]
[357439972,1744067443676,-500.0,0.00022465,2]
[357439973,1744067443686,-500.0,0.00022465,2]
[357439974,1744067443696,-500.0,0.00022465,2]
[357439975,1744067443705,-500.0,0.00022465,2]
[357439976,1744067443715,-500.0,0.00022465,2]
[357439977,1744067443725,-249.937789,0.00022465,2]
[357439978,1744067443735,-500.0,0.00022465,2]
[357439979,1744067443744,-500.0,0.00022465,2]
[357439980,1744067443754,-500.0,0.00022465,2]
[357439981,1744067443763,-500.0,0.00022465,2]
[357439982,1744067443773,-500.0,0.00022465,2]
[357439983,1744067443782,-500.0,0.00022465,2]
[357439984,1744067443792,-500.0,0.00022465,2]
[357439985,1744067443802,-500.0,0.00022465,2]
[357439987,1744067443811,-500.0,0.00022465,2]
[357439989,1744067443821,-500.0,0.00022465,2]
[357439991,1744067443831,-500.0,0.00022465,2]
[357439993,1744067443840,-500.0,0.00022465,2]
[357439995,1744067443849,-500.0,0.00022465,2]
[357439996,1744067443859,-1072.29,0.00022465,2]
[357439997,1744067443868,-500.0,0.00022465,2]
[357439998,1744067443878,-303.98603065,0.00022465,2]
[357439999,1744067443888,-500.0,0.00022465,2]
[357440000,1744067443898,-500.0,0.00022465,2]
[357440001,1744067443908,-500.0,0.00022465,2]
[357440002,1744067443918,-500.0,0.00022465,2]
[357440003,1744067443928,-500.0,0.00022465,2]
[357440004,1744067443938,-927.79,0.00022465,2]
[357440005,1744067443948,-500.0,0.00022465,2]
[357440006,1744067443957,-881.96,0.00022465,2]
[357440007,1744067443967,-500.0,0.00022465,2]
[357440008,1744067443977,-547.24,0.00022465,2]
[357440009,1744067443987,-616.34,0.00022465,2]
[357440010,1744067443996,-630.97,0.00022465,2]
[357440011,1744067444006,-500.0,0.00022465,2]
[357440012,1744067444016,-500.0,0.00022465,2]
[357440013,1744067444025,-283.01463211,0.00022465,2]
[357440014,1744067444036,-500.0,0.00022465,2]
[357440015,1744067444045,-500.0,0.00022465,2]
[357440016,1744067444055,-500.0,0.00022465,2]
[357440017,1744067444065,-500.0,0.00022465,2]
[357440018,1744067444075,-605.8,0.00022465,2]
[357440019,1744067444085,-500.0,0.00022465,2]
[357440020,1744067444094,-500.0,0.00022465,2]
[357440021,1744067444104,-500.0,0.00022465,2]
[357440022,1744067444114,-1060.35,0.00022465,2]
[357440023,1744067444123,-541.6,0.00022465,2]
[357440024,1744067444135,-500.0,0.00022465,2]
[357440025,1744067444144,-500.0,0.00022465,2]
[357440026,1744067444154,-644.66156314,0.00022465,2]